bitfinex-derivatives/quotes_SOLF0:USTF0_20241026
["timestamp","ask_amount","ask_price","bid_price","bid_amount"]
[1729951558631,2.9774,168.11,168.07,11.21143951]
[1729951559123,8.23353951,168.12,168.07,8.23353951]
[1729951559326,2.9775,168.1,168.07,11.21153951]
[1729951561031,8.23353951,168.11,168.03,2.617]
[1729951561225,8.23353951,168.09,168.03,1.2927]
[1729951561528,8.23353951,168.07,168.03,1.2927]
[1729951561734,8.23353951,168.07,168.02,8.23353951]
[1729951561735,2.9784,168.05,168.02,11.21243951]
[1729951562230,2.9783,168.06,168.02,2.9789]
[1729951562630,2.9783,168.06,168.03,2.9787]
[1729951564028,7.8177,168.09,168.06,2.9782]
[1729951564228,4.84,168.09,168.03,14.07347445]
[1729951564432,6.1155,168.12,168.03,14.07347445]
[1729951564931,248.2360104,168.17,168.06,12.86377445]
[1729951564932,4.84,168.13,168.06,12.86377445]
[1729951565326,2.9773,168.12,168.08,2.9777]
[1729951566337,4.84,168.14,168.08,12.86377445]
[1729951567231,7.8169,168.14,168.09,2.9775]
[1729951567432,7.8169,168.14,168.08,12.86377445]
[1729951568733,2.9764,168.16,168.1,12.86377445]
[1729951569135,4.84,168.18,168.08,14.08177445]
[1729951569330,12.86377445,168.17,168.1,2.9774]
[1729951569929,2.9766,168.15,168.1,2.9774]
[1729951570140,12.86377445,168.17,168.1,2.9774]
[1729951570543,2.9769,168.14,168.1,2.9774]
[1729951572845,2.9769,168.14,168.08,14.08177445]
[1729951573348,4.84,168.18,168.08,14.08177445]
[1729951573535,2.9767,168.15,168.12,2.9771]
[1729951574039,2.9765,168.16,168.13,2.977]
[1729951574542,4.84,168.18,168.11,1.2809]
[1729951574543,7.76503694,168.18,168.11,1.2809]
[1729951574745,4.84,168.18,168.11,1.2809]
[1729951574936,2.9767,168.15,168.12,2.9771]
[1729951579033,4.84,168.18,168.08,14.08177445]
[1729951579241,12.86377445,168.14,168.05,1.3217]
[1729951579447,12.86377445,168.12,168.05,1.3217]
[1729951579750,2.978,168.08,168.05,1.3217]
[1729951580443,2.978,168.08,168.05,4.3001]
[1729951580642,17.70377445,168.12,168.05,1.3217]
[1729951580843,4.84,168.12,168.08,2.9777]
[1729951581237,2.9774,168.11,168.08,2.9777]
[1729951582152,12.86377445,168.16,168.09,12.86377445]
[1729951582153,2.9769,168.14,168.09,12.86377445]
[1729951582944,2.9769,168.14,168.11,2.9772]
[1729951583356,2.9766,168.16,168.09,12.86377445]
[1729951583646,4.84,168.19,168.14,2.9767]
[1729951584152,2.9764,168.17,168.13,2.9769]
[1729951585150,2.9764,168.16,168.13,2.9769]
[1729951590255,4.76,168.19,168.11,1.2103]
[1729951590447,2.9771,168.13,168.11,1.2103]
[1729951591856,2.9768,168.14,168.11,1.2103]
[1729951592555,2.9768,168.14,168.11,4.1876]
[1729951592943,18.83292599,168.19,168.11,1.2103]
[1729951593149,18.83292599,168.19,168.12,12.86377445]
[1729951593345,4.76,168.19,168.12,14.06297445]
[1729951593546,4.76,168.19,168.14,2.9767]
[1729951593547,2.9763,168.17,168.14,2.9767]
[1729951594146,2.9762,168.18,168.14,2.9768]
[1729951594356,4.76,168.19,168.14,2.9768]
[1729951594751,2.9759,168.19,168.16,2.9763]
[1729951595757,14.07292599,168.22,168.14,12.86377445]
[1729951595961,14.07292599,168.23,168.16,12.86377445]
[1729951596559,2.9756,168.21,168.17,2.9761]
[1729951597758,14.07292599,168.23,168.15,12.86377445]
[1729951598257,2.9755,168.22,168.18,2.976]
[1729951598461,14.07292599,168.23,168.14,4.76]
[1729951598667,14.07292599,168.23,168.14,2.9767]
[1729951598851,12.86377445,168.22,168.12,15.26377445]
[1729951599162,14.08817445,168.22,168.12,1.1992]
[1729951599969,2.9765,168.16,168.12,4.1762]
[1729951604268,7.736,168.19,168.15,2.9765]
[1729951604469,13.94094021,168.21,168.15,2.9765]
[1729951604671,18.70094021,168.21,168.15,2.9765]
[1729951604870,4.76,168.21,168.15,2.9765]
[1729951605071,28.02911466,168.22,168.15,2.9765]
[1729951605273,2.9762,168.18,168.15,2.9765]
[1729951607771,2.9762,168.18,168.12,14.06297445]
[1729951607971,13.94094021,168.21,168.14,12.86377445]
[1729951608169,248.15430656,168.24,168.16,12.86377445]
[1729951608379,248.15430656,168.24,168.19,2.9758]
[1729951608682,2.9748,168.26,168.19,12.86377445]
[1729951608873,4.76,168.28,168.21,2.9754]
[1729951609071,4.76,168.28,168.19,17.62377445]
[1729951610283,2.9749,168.25,168.22,2.9753]
[1729951610478,2.9749,168.25,168.19,17.62377445]
[1729951610776,2.9749,168.25,168.21,2.9754]
[1729951615378,2.9755,168.22,168.19,2.9758]
[1729951616092,2.9761,168.18,168.15,4.64]
[1729951616576,2.9761,168.18,168.14,4.64]
[1729951616979,17.50377445,168.24,168.14,4.64]
[1729951617178,2.9759,168.19,168.14,4.64]
[1729951618089,2.9758,168.2,168.14,7.6167]
[1729951618283,12.86377445,168.22,168.14,7.6167]
[1729951618891,2.9762,168.18,168.15,2.9766]
[1729951624393,2.9762,168.18,168.15,11.21054189]
[1729951630386,4.64,168.24,168.11,2.5509]
[1729951630387,8.23394189,168.17,168.11,1.2433]
[1729951630687,13.86187875,168.24,168.16,8.23394189]
[1729951630892,2.9759,168.19,168.16,11.21034189]
[1729951632698,13.86187875,168.25,168.17,8.23394189]
[1729951632888,3.03520567,168.26,168.13,7.59262847]
[1729951632889,7.67520567,168.26,168.21,8.23394189]
[1729951633091,8.23394189,168.25,168.18,1.2603]
[1729951633288,2.9759,168.2,168.17,12.87394189]
[1729951634290,2.9759,168.2,168.17,11.21014189]
[1729951634896,8.23394189,168.22,168.17,11.21014189]
[1729951634897,8.23394189,168.22,168.17,8.23394189]
[1729951635101,2.9755,168.22,168.18,11.20994189]
[1729951636200,2.9753,168.23,168.19,11.20974189]
[1729951636697,8.23394189,168.25,168.19,11.20974189]
[1729951636898,2.9754,168.22,168.19,11.20974189]
[1729951637195,8.23394189,168.23,168.18,8.23394189]
[1729951637400,2.9757,168.21,168.18,8.23394189]
[1729951637594,8.23394189,168.23,168.18,8.23394189]
[1729951638502,8.23394189,168.23,168.15,4.64]
[1729951638503,2.9754,168.22,168.19,11.20984189]
[1729951638902,15.88319255,168.26,168.2,8.23394189]
[1729951639402,2.975,168.25,168.22,8.23394189]
[1729951640001,2.975,168.25,168.22,11.20934189]
[1729951641218,2.975,168.24,168.19,7.6158]
[1729951641506,2.975,168.24,168.19,15.84974189]
[1729951641507,8.23394189,168.24,168.19,15.84974189]
[1729951642101,2.9754,168.22,168.19,15.84974189]
[1729951642414,2.9754,168.22,168.19,4.64]
[1729951642706,2.9754,168.22,168.19,12.87394189]
[1729951643106,2.9754,168.22,168.19,15.84974189]
[1729951644106,2.9754,168.22,168.2,8.23394189]
[1729951645608,2.9753,168.23,168.2,11.20964189]
[1729951647502,2.9749,168.25,168.22,2.9752]
[1729951647709,2.9749,168.25,168.22,11.20914189]
[1729951647905,4.64,168.28,167.9,2.76277133]
[1729951647906,17.88,168.19,167.9,2.76277133]
[1729951648110,8.23394189,168.02,167.92,2.5233]
[1729951648307,8.23394189,168.02,167.96,8.23394189]
[1729951648503,11.21304189,168.02,167.96,8.23394189]
[1729951648721,5.14,168.07,167.98,8.23394189]
[1729951648904,8.23394189,168.05,167.98,8.23394189]
[1729951649313,2.9787,168.03,167.98,8.23394189]
[1729951650401,2.9787,168.03,167.96,20.99591277]
[1729951650603,2.9787,168.03,167.96,18.01601277]
[1729951653020,2.9787,168.03,167.96,20.99591277]
[1729951654419,18.01601277,168.07,167.96,20.99591277]
[1729951654618,2.9789,168.02,167.96,20.99591277]
[1729951655423,2.9789,168.02,167.97,2.9798]
[1729951656022,2.9793,168.0,167.96,18.01601277]
[1729951657428,2.9793,168.0,167.96,20.99591277]
[1729951660329,2.9793,168.0,167.96,15.85591277]
[1729951660530,2.9793,168.0,167.96,20.99591277]
[1729951661031,18.01601277,168.07,167.96,20.99591277]
[1729951661228,2.9791,168.01,167.96,20.99591277]
[1729951663435,18.01601277,168.07,167.96,18.01601277]
[1729951664035,2.9789,168.03,167.98,2.9796]
[1729951667027,2.9789,168.03,167.96,18.01601277]
[1729951667334,2.9789,168.03,167.99,2.9794]
[1729951672431,2.9789,168.03,167.99,11.21919671]
[1729951674728,248.32142858,168.12,168.02,8.23979671]
[1729951674933,2.9782,168.06,168.02,8.23979671]
[1729951675532,2.9787,168.04,168.01,10.75439671]
[1729951676239,2.9787,168.04,168.01,13.73329671]
[1729951678446,2.978,168.08,168.04,2.9784]
[1729951678640,8.23979671,168.08,168.03,8.23979671]
[1729951680645,8.23979671,168.06,168.01,10.75439671]
[1729951681540,2.9785,168.05,168.02,2.9788]
[1729951681739,2.9785,168.05,168.02,11.21859671]
[1729951683635,2.9786,168.04,168.01,2.5146]
[1729951683842,2.9786,168.04,167.99,4.2145]
[1729951683843,8.23979671,168.04,167.99,4.2145]
[1729951684141,8.23979671,168.04,167.99,2.9794]
[1729951684539,2.9794,168.0,167.96,8.0198]
[1729951684745,8.23979671,168.01,167.96,5.04]
[1729951684944,8.23979671,167.99,167.94,5.04]
[1729951685143,11.21939671,167.99,167.94,5.04]
[1729951685544,5.04,168.03,167.96,8.23979671]
[1729951685739,11.21899671,168.01,167.97,2.9797]
[1729951686046,11.21899671,168.01,167.96,8.23979671]
[1729951686250,2.9792,168.01,167.94,17.91750595]
[1729951687247,2.9792,168.01,167.98,2.9795]
[1729951690754,5.04,168.03,167.97,2.9798]
[1729951690755,2.9794,168.0,167.97,2.9798]
[1729951691248,2.9797,167.98,167.95,8.0201]
[1729951692053,12.87750595,168.04,167.95,5.04]
[1729951693052,2.979,168.02,167.98,2.9794]
[1729951693645,12.87750595,168.04,167.98,2.9794]
[1729951694346,2.9791,168.02,167.98,2.9794]
[1729951695751,2.9791,168.01,167.98,2.9794]
[1729951697652,5.04,168.06,167.95,12.87750595]
[1729951697653,12.87750595,168.02,167.95,2.98]
[1729951697857,12.87750595,168.02,167.93,8.9065]
[1729951698044,12.87750595,168.0,167.93,3.8665]
[1729951698451,2.9796,167.98,167.93,3.8665]
[1729951699462,2.9796,167.98,167.95,2.98]
[1729951699650,2.9799,167.97,167.93,3.8665]
[1729951700050,12.87750595,168.0,167.93,3.8665]
[1729951700250,2.9798,167.98,167.93,3.8665]
[1729951701248,2.9798,167.98,167.95,2.9801]
[1729951702957,17.91750595,168.02,167.93,3.8665]
[1729951703158,2.9794,167.99,167.96,2.9799]
[1729951705046,5.04,168.02,167.93,16.74400595]
[1729951705251,5.04,168.02,167.97,2.9797]
[1729951705447,5.04,168.02,167.93,16.74400595]
[1729951705661,2.9796,167.99,167.96,2.98]
[1729951711458,2.9796,167.98,167.96,2.98]
[1729951711864,2.9796,167.98,167.95,11.22312284]
[1729951713463,8.24312284,168.01,167.95,8.24312284]
[1729951713659,2.9795,167.99,167.96,2.9799]
[1729951714865,5.04,168.03,167.96,8.24312284]
[1729951715172,11.22232284,168.01,167.98,2.9796]
[1729951715558,306.22142858,168.12,167.99,8.24312284]
[1729951715768,8.24312284,168.06,167.99,8.24312284]
[1729951716075,8.24312284,168.04,167.99,8.24312284]
[1729951716770,8.24312284,168.05,167.99,8.24312284]
[1729951717166,2.9786,168.04,168.01,2.979]
[1729951718871,8.24312284,168.05,168.01,2.979]
[1729951719073,4.9,168.09,168.02,2.9787]
[1729951719273,8.24312284,168.05,168.02,2.9787]
[1729951720362,2.9787,168.03,168.0,2.9791]
[1729951723078,8.24312284,168.02,167.93,3.8665]
[1729951723273,8.24312284,168.01,167.96,2.9798]
[1729951724271,8.24312284,168.01,167.97,2.9798]
[1729951724977,2.9794,168.0,167.97,2.9798]
[1729951729874,2.9794,167.99,167.97,2.9798]
[1729951730684,2.9792,168.01,167.98,2.9796]
[1729951730880,8.24312284,168.02,167.97,8.24312284]
[1729951731081,2.9791,168.01,167.98,2.9795]
[1729951735776,2.9156285,168.07,167.94,4.9]
[1729951735777,4.9,168.07,168.0,8.24312284]
[1729951735984,8.24312284,168.06,168.0,8.24312284]
[1729951737278,2.9789,168.03,168.0,11.22232284]
[1729951740984,8.24312284,168.03,167.98,4.9]
[1729951741295,8.24312284,168.02,167.96,8.24312284]
[1729951743790,8.24312284,167.99,167.94,12.98312284]
[1729951744089,8.24312284,167.99,167.94,8.24312284]
[1729951744399,2.9797,167.98,167.95,2.9801]
[1729951745591,2.9797,167.98,167.95,11.22322284]
[1729951746397,2.9796,167.99,167.96,2.98]
[1729951747997,2.9796,167.98,167.95,11.22322284]
[1729951748701,8.24312284,168.0,167.95,11.22322284]
[1729951748702,2.9795,167.99,167.96,2.9799]
[1729951752793,16.83734824,168.08,167.98,8.24312284]
[1729951752794,8.24312284,168.05,167.98,8.24312284]
[1729951752994,8.24312284,168.03,167.97,8.24312284]
[1729951753807,8.24312284,168.02,167.97,11.22282284]
[1729951755205,2.9791,168.01,167.97,11.22282284]
[1729951756710,2.9791,168.01,167.98,2.9796]
[1729951757800,4.74,168.06,167.98,8.24312284]
[1729951758002,2.9787,168.04,168.01,2.979]
[1729951758403,2.9787,168.04,167.99,8.24312284]
[1729951758605,2.9787,168.04,168.0,2.9792]
[1729951759006,2.9787,168.03,168.0,2.9792]
[1729951759710,2.9788,168.03,167.99,11.22242284]
[1729951760004,4.74,168.07,167.99,8.24312284]
[1729951760197,2.9786,168.04,168.01,2.9791]
[1729951760403,2.9786,168.04,167.99,8.24312284]
[1729951760810,2.9786,168.04,168.0,2.9792]
[1729951761202,2.979,168.02,167.95,4.74]
[1729951761403,8.24312284,168.02,167.98,8.24312284]
[1729951761905,2.9792,168.01,167.98,8.24312284]
[1729951763198,2.9792,168.01,167.97,2.9797]
[1729951763399,8.24312284,168.0,167.96,2.9799]
[1729951763603,8.24312284,168.0,167.95,4.74]
[1729951763804,2.9797,167.98,167.95,4.74]
[1729951764002,2.9797,167.98,167.95,7.7201]
[1729951764204,8.24312284,167.99,167.95,7.7201]
[1729951764807,11.22272284,167.99,167.95,7.7201]
[1729951765311,11.22272284,167.99,167.95,2.9801]
[1729951765915,8.24312284,167.99,167.93,3.8665]
[1729951766915,8.24312284,167.99,167.93,6.847]
[1729951767414,2.9799,167.97,167.93,6.847]
[1729951767807,11.22302284,167.97,167.93,5.5371]
[1729951768121,2.9801,167.96,167.93,2.5566]
[1729951769007,2.9801,167.96,167.93,5.537]
[1729951769615,8.24312284,167.96,167.9,8.24312284]
[1729951769815,2.9803,167.95,167.91,2.9808]
[1729951771218,2.9804,167.94,167.91,2.9809]
[1729951772320,8.24312284,167.94,167.88,3.8274]
[1729951772515,8.24312284,167.94,167.88,12.07052284]
[1729951772822,2.9808,167.92,167.88,15.05182284]
[1729951773222,8.24312284,167.94,167.88,8.24312284]
[1729951773423,2.9807,167.92,167.88,11.22452284]
[1729951773722,8.24312284,167.94,167.88,8.24312284]
[1729951773913,2.9806,167.93,167.89,2.9812]
[1729951774720,2.9801,167.96,167.92,8.24312284]
[1729951774920,12.88312284,167.98,167.92,8.24312284]
[1729951775716,2.9802,167.95,167.92,11.22382284]
[1729951775917,2.9802,167.95,167.92,8.24312284]
[1729951778925,8.24312284,167.97,167.91,11.22392284]
[1729951779121,2.9804,167.94,167.91,8.24312284]
[1729951781420,4.64,167.98,167.9,3.7013]
[1729951781624,2.9803,167.95,167.91,2.9808]
[1729951782129,2.9805,167.94,167.9,14.92542284]
[1729951785125,2.9805,167.94,167.9,3.7013]
[1729951785331,2.9817719,167.99,167.84,4.64]
[1729951785332,8.24312284,167.91,167.84,4.64]
[1729951785627,8.24312284,167.91,167.8,2.5339]
[1729951785820,8.24312284,167.91,167.86,8.24312284]
[1729951786225,4.64,167.93,167.86,8.24312284]
[1729951786527,2.9811,167.9,167.87,2.9814]
[1729951787226,2.9811,167.9,167.86,8.24312284]
[1729951787227,2.9811,167.9,167.86,11.22482284]
[1729951789128,2.9813,167.89,167.85,2.9819]
[1729951789334,2.9813,167.89,167.85,11.22502284]
[1729951791035,8.24312284,167.9,167.87,2.9816]
[1729951791535,8.24312284,167.9,167.86,2.5409]
[1729951791741,11.22422284,167.9,167.86,5.5226]
[1729951792837,2.9813,167.89,167.86,5.5226]
[1729951793525,8.24312284,167.9,167.86,2.5409]
[1729951793832,8.24312284,167.91,167.86,2.5409]
[1729951794635,2.9814,167.89,167.86,2.5409]
[1729951795437,2.9815,167.88,167.86,2.5409]
[1729951796640,4.64,167.93,167.86,2.5409]
[1729951796938,8.24312284,167.91,167.87,2.9815]
[1729951798230,2.9811,167.9,167.87,2.9815]
[1729951800536,3.01182939,167.96,167.68,17.89]
[1729951800537,8.24312284,167.88,167.68,17.89]
[1729951800744,8.24312284,167.87,167.78,2.5598]
[1729951800948,8.24312284,167.85,167.8,9.56492284]
[1729951801236,248.58081059,167.91,167.84,8.24312284]
[1729951801441,248.58081059,167.91,167.87,8.24312284]
[1729951801644,256.82393343,167.91,167.85,10.80292284]
[1729951802037,11.22412284,167.91,167.87,2.9815]
[1729951802236,8.24312284,167.91,167.87,2.9815]
[1729951802438,8.24312284,167.91,167.85,10.80292284]
[1729951803048,2.9812,167.9,167.86,2.9817]
[1729951803237,4.6,167.92,167.85,10.80292284]
[1729951803437,11.22402284,167.91,167.88,2.9814]
[1729951803636,8.24312284,167.91,167.88,2.9814]
[1729951803940,2.9796,167.99,167.9,8.24312284]
[1729951804241,8.24312284,167.98,167.92,8.24312284]
[1729951804440,8.24312284,167.96,167.92,2.9807]
[1729951804640,8.24312284,167.95,167.91,1.2327]
[1729951805043,8.24312284,167.92,167.89,4.6]
[1729951805635,11.22392284,167.92,167.89,4.6]
[1729951806041,4.6,167.97,167.89,4.6]
[1729951806236,8.24312284,167.92,167.89,4.6]
[1729951807549,8.24312284,167.92,167.9,2.9809]
[1729951807745,8.24312284,167.94,167.89,12.84312284]
[1729951808450,8.24312284,167.94,167.91,2.9807]
[1729951808748,2.98,167.96,167.89,12.84312284]
[1729951808749,4.6,167.99,167.92,8.24312284]
[1729951808953,8.24312284,167.97,167.94,2.9803]
[1729951809350,13.76818886,168.06,167.96,2.98]
[1729951809351,2.9794,168.0,167.96,2.98]
[1729951809551,8.9273,168.2,167.86,2.5464]
[1729951809552,4.6,168.04,167.95,8.24312284]
[1729951809750,8.24312284,168.0,167.95,8.24312284]
[1729951810350,8.24312284,167.99,167.94,4.6]
[1729951811061,8.24312284,168.0,167.95,8.24312284]
[1729951811445,8.24312284,168.0,167.97,2.9797]
[1729951811762,8.24312284,168.0,167.95,8.24312284]
[1729951812054,8.24312284,168.02,167.96,8.24312284]
[1729951812855,11.22222284,168.02,167.98,2.9795]
[1729951813652,11.22212284,168.02,167.98,2.9796]
[1729951814054,2.979,168.02,167.98,2.9796]
[1729951814256,4.6,168.07,167.98,12.84312284]
[1729951814459,8.24312284,168.04,167.99,2.4577]
[1729951814763,11.22172284,168.04,168.01,2.979]
[1729951815064,11.22172284,168.04,167.99,2.4577]
[1729951815256,11.22172284,168.04,168.0,2.9792]
[1729951816958,8.24312284,168.07,168.01,8.24312284]
[1729951817160,8.24312284,168.07,168.02,4.6]
[1729951818070,11.22132284,168.07,168.03,2.9787]
[1729951818362,8.24312284,168.07,168.02,4.6]
[1729951819256,11.22132284,168.07,168.03,2.9787]
[1729951819460,57.92,168.17,168.04,8.24312284]
[1729951819671,8.24312284,168.11,168.04,8.24312284]
[1729951820555,2.9777,168.09,168.04,11.22162284]
[1729951820758,8.24312284,168.11,168.04,8.24312284]
[1729951820958,2.9776,168.1,168.06,11.22122284]
[1729951821162,18.37412707,168.16,168.03,9.54172284]
[1729951821163,8.24312284,168.08,168.03,9.54172284]
[1729951821351,8.24312284,168.06,168.04,4.6]
[1729951821966,8.24312284,168.06,168.01,4.6]
[1729951822266,8.24312284,168.05,168.0,12.84312284]
[1729951822566,8.24312284,168.05,168.01,2.979]
[1729951823261,11.22162284,168.05,168.01,2.979]
[1729951823659,8.24312284,168.05,168.0,12.84312284]
[1729951823866,2.9786,168.04,168.0,12.84312284]
[1729951824763,2.9786,168.04,168.0,15.82232284]
[1729951825466,2.9786,168.04,168.0,7.5792]
[1729951827569,2.9786,168.04,168.0,2.9792]
[1729951827868,2.9786,168.04,168.0,7.5792]
[1729951829377,8.24312284,168.05,168.0,4.6]
[1729951829565,8.24312284,168.05,168.01,2.979]
[1729951830474,8.24312284,168.06,168.01,11.22212284]
[1729951831373,2.9786,168.04,168.01,11.22212284]
[1729951831772,4.6,168.08,168.03,8.24312284]
[1729951831970,8.24312284,168.09,168.03,8.24312284]
[1729951832675,2.9782,168.07,168.03,11.22172284]
[1729951834771,2.9782,168.06,168.03,11.22172284]
[1729951834979,2.9782,168.06,168.02,2.9789]
[1729951835279,8.24312284,168.06,167.99,2.4577]
[1729951835573,2.9786,168.04,168.0,12.84312284]
[1729951836077,2.9786,168.04,168.0,11.22232284]
[1729951841587,2.9786,168.04,168.01,2.9791]
[1729951841983,2.9789,168.03,167.99,15.30082284]
[1729951842385,2.9789,168.02,167.99,18.28012284]
[1729951842785,8.24312284,168.04,167.99,15.30082284]
[1729951842980,2.979,168.02,167.99,13.68022284]
[1729951843182,8.24312284,168.01,167.96,8.24312284]
[1729951844184,2.9793,168.0,167.97,2.9797]
[1729951845092,8.24312284,168.01,167.96,8.24312284]
[1729951845291,8.24312284,168.01,167.96,11.22292284]
[1729951845494,2.9795,167.99,167.96,11.22292284]
[1729951845693,2.9795,167.99,167.96,8.24312284]
[1729951846893,8.24312284,168.01,167.95,4.6]
[1729951847092,251.35387689,168.08,167.94,3.8168]
[1729951847093,8.24312284,167.99,167.94,3.8168]
[1729951847496,8.24312284,167.99,167.94,6.7971]
[1729951847497,2.9799,167.97,167.94,6.7971]
[1729951848298,2.9801,167.96,167.93,2.9805]
[1729951848997,2.9802,167.95,167.92,11.22372284]
[1729951849406,5.9567,168.06,167.92,8.24312284]
[1729951849694,8.24312284,168.04,167.97,8.24312284]
[1729951849889,8.24312284,168.02,167.95,4.6]
[1729951850201,8.24312284,168.01,167.95,4.6]
[1729951851703,2.9796,167.99,167.96,2.98]
[1729951852197,2.9796,167.99,167.96,11.22312284]
[1729951852400,2.9793,168.0,167.96,11.22312284]
[1729951853601,11.22202284,168.02,167.99,2.9793]
[1729951853799,11.22202284,168.02,167.97,8.24312284]
[1729951854398,11.22202284,168.02,167.98,2.9796]
[1729951854602,2.9791,168.01,167.98,2.9796]
[1729951854790,2.9791,168.01,167.97,8.24312284]
[1729951855199,2.9791,168.01,167.97,11.22282284]
[1729951858601,8.24312284,168.02,167.97,8.24312284]
[1729951859601,2.9794,168.0,167.97,11.22292284]
[1729951860506,2.9796,167.99,167.95,7.58]
[1729951860895,8.24312284,168.0,167.95,4.6]
[1729951861100,2.9797,167.98,167.94,11.22332284]
[1729951861294,8.24312284,167.98,167.93,11.97572284]
[1729951861603,2.9799,167.97,167.94,2.9803]
[1729951862600,2.9797,167.98,167.94,11.22342284]
[1729951863203,8.24312284,167.99,167.94,8.24312284]
[1729951864402,2.98,167.98,167.95,2.9804]
[1729951864795,2.98,167.98,167.94,8.24312284]
[1729951865399,2.98,167.98,167.94,11.22362284]
[1729951865606,2.98,167.98,167.94,8.24312284]
[1729951865907,8.24312284,167.99,167.94,11.22362284]
[1729951866402,2.98,167.98,167.94,11.22362284]
[1729951866601,2.98,167.98,167.95,2.9804]
[1729951869509,8.24312284,167.97,167.93,2.464]
[1729951869710,8.24312284,167.97,167.9,12.84312284]
[1729951869914,8.24312284,167.95,167.9,8.24312284]
[1729951870410,2.9807,167.94,167.91,2.981]
[1729951870907,2.9807,167.94,167.9,8.24312284]
[1729951871212,2.9807,167.94,167.91,2.9811]
[1729951871505,8.24312284,167.95,167.9,8.24312284]
[1729951871699,4.6,167.95,167.75,3.8667]
[1729951871903,8.24312284,167.92,167.86,8.24312284]
[1729951872704,2.9812,167.91,167.87,2.9818]
[1729951874008,2.9812,167.91,167.85,1.3195]
[1729951874009,7.5808,167.94,167.9,2.9813]
[1729951874213,4.6,167.94,167.89,8.24312284]
[1729951874611,2.9808,167.93,167.89,11.22452284]
[1729951874810,12.84312284,167.94,167.88,8.24312284]
[1729951876310,2.9809,167.93,167.89,2.9815]
[1729951877122,13.73200052,168.02,167.91,8.24312284]
[1729951877317,8.24312284,167.96,167.91,8.24312284]
[1729951877509,12.84312284,167.96,167.91,8.24312284]
[1729951878408,15.82352284,167.96,167.92,2.9808]
[1729951879315,7.5804,167.96,167.92,2.9808]
[1729951879514,5.9571,168.06,167.89,1.2358]
[1729951879515,2.9797,168.0,167.96,2.9802]
[1729951881309,2.98,167.98,167.94,11.22372284]
[1729951881514,8.24312284,167.99,167.94,8.24312284]
[1729951881817,8.24312284,168.0,167.95,8.24312284]
[1729951883116,8.24312284,167.99,167.92,1.3072]
[1729951883418,8.24312284,167.97,167.92,1.3072]
[1729951883815,8.24312284,167.97,167.92,4.2881]
[1729951884012,8.24312284,167.95,167.92,1.3072]
[1729951884621,11.22362284,167.95,167.92,1.3072]
[1729951885209,2.9809,167.93,167.89,4.2172]
[1729951887418,2.981,167.92,167.89,4.2172]
[1729951887614,8.24312284,167.92,167.89,1.2358]
[1729951888216,2.9812,167.91,167.89,1.2358]
[1729951892727,8.24312284,167.92,167.89,1.2358]
[1729951892928,11.22412284,167.92,167.89,1.2358]
[1729951893519,12.84312284,167.93,167.89,1.2358]
[1729951894729,8.24312284,167.9,167.72,138.89990972]
[1729951894928,8.24312284,167.9,167.83,8.24312284]
[1729951895226,2.9818,167.88,167.85,2.9822]
[1729951895430,8.24312284,167.91,167.85,8.24312284]
[1729951895622,4.6,167.9,167.86,8.24312284]
[1729951895828,2.9812,167.91,167.87,2.9818]
[1729951896726,12.84312284,167.92,167.86,8.24312284]
[1729951896932,8.24312284,167.89,167.82,2.4334]
[1729951897131,8.24312284,167.89,167.83,8.24312284]
[1729951897428,2.9818,167.88,167.84,11.22542284]
[1729951898926,2.9816,167.89,167.85,11.22522284]
[1729951899525,8.24312284,167.88,167.85,2.9821]
[1729951900923,8.24312284,167.88,167.83,8.24312284]
[1729951901228,8.24312284,167.88,167.82,2.4334]
[1729951901229,8.24312284,167.91,167.86,8.24312284]
[1729951902323,11.22432284,167.91,167.88,2.9816]
[1729951902925,8.24312284,167.9,167.84,8.24312284]
[1729951903520,8.24312284,167.88,167.82,10.67652284]
[1729951904026,8.24312284,167.88,167.86,2.982]
[1729951905929,2.9816,167.89,167.84,8.24312284]
[1729951906234,4.6,167.94,167.85,8.24312284]
[1729951906530,8.24312284,167.9,167.87,2.9817]